bitfinex/quotes_SOLUSD_20250624
["timestamp","ask_amount","ask_price","bid_price","bid_amount"]
[1750751819854,6.86531747,144.47,144.44,5.65633257]
[1750751821695,6.86531747,144.47,144.46,24.30598143]
[1750751822374,6.86531747,144.47,144.46,18.64964886]
[1750751822896,12.52165004,144.47,144.44,89.4]
[1750751823056,6.86531747,144.47,144.44,89.4]
[1750751824264,5.65633257,144.46,144.44,89.4]
[1750751824657,5.65633257,144.45,144.44,89.4]
[1750751826492,5.65633257,144.45,144.42,7.08]
[1750751826697,5.65633257,144.43,144.42,7.08]
[1750751826870,5.65633257,144.43,144.42,96.48]
[1750751827690,5.65633257,144.44,144.42,96.48]
[1750751828073,8.39161747,144.47,144.42,96.48]
[1750751828388,6.86531747,144.47,144.44,5.65633257]
[1750751828569,6.86531747,144.47,144.43,48.56964886]
[1750751828772,6.86531747,144.47,144.44,5.65633257]
[1750751828979,6.86531747,144.47,144.44,95.05633257]
[1750751829199,6.86531747,144.47,144.46,5.65633257]
[1750751829493,14.05555004,144.47,144.37,7.08]
[1750751829675,5.65633257,144.46,144.42,5.65633257]
[1750751829988,12.52165004,144.47,144.44,18.64964886]
[1750751830179,6.86531747,144.47,144.44,24.30598143]
[1750751830384,6.86531747,144.47,144.44,54.26598143]
[1750751830583,6.86531747,144.47,144.41,44.64964886]
[1750751830784,5.65633257,144.45,144.41,18.64964886]
[1750751830998,5.65633257,144.45,144.4,24.30598143]
[1750751831179,5.65633257,144.44,144.4,18.64964886]
[1750751831496,6.86531747,144.47,144.4,18.64964886]
[1750751831796,5.65633257,144.42,144.4,18.64964886]
[1750751832491,6.86531747,144.47,144.4,18.64964886]
[1750751833003,5.65633257,144.43,144.4,18.64964886]
[1750751833373,6.86531747,144.47,144.4,18.64964886]
[1750751833574,5.65633257,144.43,144.4,18.64964886]
[1750751833775,5.65633257,144.42,144.4,18.64964886]
[1750751834080,5.65633257,144.43,144.4,18.64964886]
[1750751834478,5.65633257,144.41,144.4,18.64964886]
[1750751834674,5.65633257,144.42,144.4,18.64964886]
[1750751835287,5.65633257,144.43,144.4,18.64964886]
[1750751835681,5.65633257,144.43,144.4,108.04964886]
[1750751836503,5.65633257,144.41,144.35,89.4]
[1750751836805,5.65633257,144.38,144.33,154.65633257]
[1750751837010,5.65633257,144.38,144.34,48.68964886]
[1750751837207,5.65633257,144.38,144.34,138.08964886]
[1750751837795,5.65633257,144.39,144.34,143.74598143]
[1750751838910,1.6325,144.42,144.36,5.65633257]
[1750751839108,6.6456,144.46,144.36,5.65633257]
[1750751839109,5.65633257,144.41,144.37,48.66964886]
[1750751840602,5.65633257,144.41,144.37,54.32598143]
[1750751841018,5.65633257,144.41,144.37,48.66964886]
[1750751842806,5.65633257,144.42,144.39,18.64964886]
[1750751843112,5.65633257,144.4,144.38,18.64964886]
[1750751843704,5.65633257,144.41,144.38,18.64964886]
[1750751844112,5.65633257,144.42,144.38,18.64964886]
[1750751844432,5.65633257,144.42,144.38,48.58964886]
[1750751844799,5.65633257,144.43,144.38,143.64598143]
[1750751845297,1.6577,144.45,144.39,5.65633257]
[1750751845605,5.65633257,144.44,144.4,48.56964886]
[1750751845804,5.65633257,144.44,144.4,54.22598143]
[1750751846053,1.6577,144.45,144.4,54.22598143]
[1750751846198,7.31403257,144.45,144.4,61.32598143]
[1750751846920,1.6577,144.45,144.4,55.66964886]
[1750751847216,5.65633257,144.44,144.4,55.66964886]
[1750751847599,7.31403257,144.45,144.4,61.32598143]
[1750751848723,7.31403257,144.45,144.4,150.72598143]
[1750751848928,5.65633257,144.45,144.4,145.06964886]
[1750751849103,6.86531747,144.47,144.4,145.06964886]
[1750751849305,5.65633257,144.45,144.4,150.72598143]
[1750751849914,26.57454886,144.39,144.19,7.1]
[1750751850115,7.9249,144.39,144.26,5.65633257]
[1750751850441,5.65633257,144.35,144.3,5.65633257]
[1750751850640,7.9249,144.39,144.31,18.64964886]
[1750751850846,5.65633257,144.36,144.31,18.64964886]
[1750751851019,5.65633257,144.35,144.31,18.64964886]
[1750751851216,5.65633257,144.32,144.28,18.64964886]
[1750751851523,5.65633257,144.31,144.26,5.65633257]
[1750751851723,5.65633257,144.32,144.27,5.65633257]
[1750751851917,5.65633257,144.32,144.28,18.64964886]
[1750751852315,11.09276751,144.29,144.24,34.08134384]
[1750751852622,11.09276751,144.29,144.2,7.1]
[1750751852623,9.44336751,144.25,144.2,7.1]
[1750751852820,9.44336751,144.24,144.2,7.1]
[1750751853233,8.0874,144.29,144.21,18.64964886]
[1750751853426,9.44336751,144.24,144.21,18.64964886]
[1750751854132,8.0874,144.29,144.21,18.64964886]
[1750751854330,9.44336751,144.24,144.21,18.64964886]
[1750751855920,9.44336751,144.23,144.2,7.1]
[1750751856257,9.44336751,144.23,144.2,96.5]
[1750751857259,9.44336751,144.21,144.2,96.5]
[1750751857474,9.44336751,144.22,144.2,89.4]
[1750751859145,8.0874,144.29,144.2,89.4]
[1750751859344,9.44336751,144.22,144.2,89.4]
[1750751860755,9.44336751,144.24,144.21,18.64964886]
[1750751860955,9.44336751,144.25,144.21,108.04964886]
[1750751861164,9.44336751,144.24,144.21,108.04964886]
[1750751861776,9.44336751,144.23,144.21,89.4]
[1750751862773,9.44336751,144.24,144.21,89.4]
[1750751864752,9.44336751,144.26,144.21,129.18336751]
[1750751864960,9.44336751,144.26,144.22,18.64964886]
[1750751865290,9.44336751,144.25,144.22,18.64964886]
[1750751865473,8.0874,144.29,144.22,18.64964886]
[1750751865474,9.44336751,144.26,144.22,18.64964886]
[1750751865660,9.44336751,144.26,144.22,108.04964886]
[1750751866377,9.44336751,144.27,144.23,39.74336751]
[1750751866787,9.44336751,144.28,144.23,129.14336751]
[1750751866987,9.44336751,144.25,144.19,89.4]
[1750751867167,9.44336751,144.23,144.2,25.74964886]
[1750751867777,9.44336751,144.24,144.2,25.74964886]
[1750751868270,9.44336751,144.25,144.22,18.64964886]
[1750751868956,9.44336751,144.23,144.2,25.74964886]
[1750751869173,9.44336751,144.22,144.2,25.74964886]
[1750751869698,9.44336751,144.22,144.2,18.64964886]
[1750751869990,9.44336751,144.22,144.15,155.0189]
[1750751869991,9.44336751,144.21,144.16,35.37301637]
[1750751870666,9.44336751,144.21,144.16,25.92964886]
[1750751870987,9.44336751,144.17,144.11,59.36237672]
[1750751871194,6.1886,144.18,144.06,5.07380496]
[1750751871356,9.44336751,144.15,144.1,9.44336751]
[1750751871683,9.44336751,144.16,144.11,18.64964886]
[1750751871857,9.44336751,144.14,144.1,18.64964886]
[1750751872052,9.44336751,144.13,144.07,25.92964886]
[1750751872270,9.44336751,144.12,144.08,18.64964886]
[1750751872484,9.44336751,144.1,144.07,25.92964886]
[1750751872663,9.44336751,144.1,144.08,18.64964886]
[1750751872865,9.44336751,144.1,144.07,7.28]
[1750751873290,9.44336751,144.08,144.07,7.28]
[1750751873666,6.1886,144.18,144.07,7.28]
[1750751873975,9.44336751,144.09,144.06,8.737296]
[1750751874172,9.44336751,144.08,144.06,1.457296]
[1750751874376,18.64964886,144.17,144.06,1.457296]
[1750751874597,9.44336751,144.07,144.06,1.457296]
[1750751874969,9.44336751,144.07,144.06,20.10694486]
[1750751875280,9.44336751,144.08,144.06,20.10694486]
[1750751875478,9.44336751,144.08,144.07,18.64964886]
[1750751876003,9.44336751,144.08,144.06,1.457296]
[1750751876603,9.44336751,144.07,144.06,1.457296]
[1750751876896,6.1886,144.18,144.06,1.457296]
[1750751877198,9.44336751,144.09,144.06,1.457296]
[1750751877690,9.44336751,144.1,144.06,1.457296]
[1750751877867,9.44336751,144.11,144.06,10.90066351]
[1750751878476,6.1886,144.18,144.06,10.90066351]
[1750751878682,9.44336751,144.1,144.06,1.457296]
[1750751879066,9.44336751,144.1,144.06,10.90066351]
[1750751879687,9.44336751,144.1,144.06,10.40066351]
[1750751879999,9.44336751,144.14,144.09,9.44336751]
[1750751880300,6.1886,144.18,144.06,0.957296]
[1750751880473,9.44336751,144.09,144.06,0.957296]
[1750751880677,9.44336751,144.08,144.06,0.957296]
[1750751880996,6.1886,144.18,144.06,0.957296]
[1750751880997,9.44336751,144.09,144.06,0.957296]
[1750751881193,9.44336751,144.1,144.06,10.40066351]
[1750751881399,9.44336751,144.12,144.07,28.09301637]
[1750751881570,9.44336751,144.12,144.09,18.64964886]
[1750751882183,9.44336751,144.1,144.06,0.957296]
[1750751882368,9.44336751,144.09,144.06,0.957296]
[1750751883077,9.44336751,144.08,144.06,0.957296]
[1750751883271,6.75337225,144.17,144.06,0.957296]
[1750751883473,9.44336751,144.07,144.06,19.10694486]
[1750751885185,9.44336751,144.08,144.06,19.10694486]
[1750751885584,6.75337225,144.17,144.06,0.457296]
[1750751885585,9.44336751,144.07,144.06,0.457296]
[1750751886396,6.80086043,144.16,144.06,0.457296]
[1750751886601,9.44336751,144.09,144.06,0.457296]
[1750751886906,6.80086043,144.16,144.06,0.457296]
[1750751886907,9.44336751,144.1,144.06,9.90066351]
[1750751887277,6.80086043,144.16,144.06,9.90066351]
[1750751887278,9.44336751,144.09,144.06,0.457296]
[1750751887597,9.44336751,144.1,144.06,9.90066351]
[1750751887802,6.80086043,144.16,144.06,9.90066351]
[1750751887976,9.44336751,144.12,144.08,28.09301637]
[1750751888301,9.44336751,144.12,144.07,28.09301637]
[1750751888479,6.80086043,144.16,144.07,28.09301637]
[1750751888480,9.44336751,144.11,144.07,28.09301637]
[1750751891281,9.44336751,144.12,144.07,18.64964886]
[1750751891584,6.80086043,144.16,144.07,18.64964886]
[1750751891585,9.44336751,144.11,144.07,18.64964886]
[1750751891908,6.80086043,144.16,144.07,28.09301637]
[1750751892084,9.44336751,144.11,144.07,18.64964886]
[1750751892275,12.48121957,144.16,144.07,18.64964886]
[1750751892474,5.68035914,144.11,144.07,18.64964886]
[1750751892888,6.80086043,144.16,144.07,24.330008]
[1750751893092,5.68035914,144.11,144.07,24.330008]
[1750751893288,5.68035914,144.1,144.07,18.64964886]
[1750751893811,5.68035914,144.11,144.07,24.330008]
[1750751893986,5.68035914,144.12,144.07,24.330008]
[1750751894510,5.68035914,144.12,144.07,18.64964886]
[1750751894679,5.68035914,144.12,144.07,24.330008]
[1750751895899,12.48121957,144.16,144.07,23.830008]
[1750751896208,5.68035914,144.12,144.08,5.68035914]
[1750751896412,5.68035914,144.11,144.07,113.230008]
[1750751896911,6.80086043,144.16,144.08,5.68035914]
[1750751897305,5.68035914,144.13,144.09,5.68035914]
[1750751897607,6.80086043,144.16,144.12,5.68035914]
[1750751897810,6.80086043,144.16,144.15,18.64964886]
[1750751898204,6.057,144.22,144.15,24.330008]
[1750751898389,5.68035914,144.21,144.17,18.64964886]
[1750751900112,5.68035914,144.21,144.14,18.64964886]
[1750751900292,9.45309457,144.2,144.17,18.64964886]
[1750751901219,1.5859,144.23,144.17,18.64964886]
[1750751901422,9.45309457,144.21,144.17,28.10274343]
[1750751901909,9.45309457,144.21,144.17,18.64964886]
[1750751903701,1.5859,144.23,144.17,9.45309457]
[1750751903900,9.45309457,144.21,144.17,9.45309457]
[1750751904097,6.0896,144.25,144.17,9.45309457]
[1750751904305,9.45309457,144.21,144.17,9.45309457]
[1750751905103,9.45309457,144.22,144.17,9.45309457]
[1750751905309,9.45309457,144.22,144.14,109.67064886]
[1750751905310,9.45309457,144.22,144.19,18.64964886]
[1750751905710,9.45309457,144.22,144.15,18.64964886]
[1750751906019,9.45309457,144.22,144.17,9.45309457]
[1750751908107,9.45309457,144.22,144.15,18.64964886]
[1750751908322,9.45309457,144.22,144.17,9.45309457]
[1750751909407,9.45309457,144.21,144.17,9.45309457]
[1750751909612,6.0896,144.25,144.17,9.45309457]
[1750751909809,9.45309457,144.18,144.17,89.4]
[1750751910017,9.45309457,144.18,144.16,18.64964886]
[1750751911424,9.45309457,144.17,144.09,6.0791]
[1750751911623,9.45309457,144.14,144.12,18.64964886]
[1750751912152,9.45309457,144.2,144.11,7.32]
[1750751912431,9.45309457,144.13,144.12,18.64964886]
[1750751912605,9.45309457,144.14,144.06,8.154296]
[1750751912800,9.45309457,144.14,144.09,16.77309457]
[1750751913000,9.45309457,144.14,144.1,18.64964886]
[1750751913201,6.3257,144.19,144.1,18.64964886]
[1750751913423,9.45309457,144.14,144.1,18.64964886]
[1750751913734,9.45309457,144.15,144.1,28.10274343]
[1750751914543,9.45309457,144.14,144.1,18.64964886]
[1750751914718,9.45309457,144.14,144.1,28.10274343]
[1750751915600,9.45309457,144.15,144.1,28.10274343]
[1750751916001,9.45309457,144.14,144.1,18.64964886]
[1750751916319,9.45309457,144.14,144.1,28.10274343]
[1750751916515,6.3257,144.19,144.1,28.10274343]
[1750751916710,9.45309457,144.15,144.1,18.64964886]
[1750751916912,9.45309457,144.15,144.1,28.10274343]
[1750751917600,9.45309457,144.14,144.1,18.64964886]
[1750751918231,9.45309457,144.14,144.1,28.10274343]
[1750751918702,6.3257,144.19,144.1,117.50274343]
[1750751918903,9.45309457,144.15,144.1,117.50274343]
[1750751919102,6.3257,144.19,144.14,18.64964886]
[1750751919315,1.5077,144.21,144.14,18.64964886]
[1750751919828,9.45309457,144.18,144.14,18.64964886]
[1750751920130,9.45309457,144.15,144.13,89.4]
[1750751920434,1.5077,144.21,144.11,25.96964886]
[1750751920635,5.67688717,144.14,144.11,25.96964886]
[1750751921013,5.67688717,144.13,144.11,25.96964886]
[1750751922012,1.5077,144.21,144.11,25.96964886]
[1750751922502,5.67688717,144.13,144.11,25.96964886]
[1750751923531,1.5077,144.21,144.11,25.96964886]
[1750751923728,5.67688717,144.14,144.11,25.96964886]
[1750751924321,5.67688717,144.13,144.11,25.96964886]
[1750751926031,1.5077,144.21,144.11,25.96964886]
[1750751926224,5.67688717,144.13,144.11,18.64964886]
[1750751928320,1.5077,144.21,144.11,108.04964886]
[1750751928620,5.67688717,144.14,144.11,108.04964886]
[1750751928817,5.67688717,144.15,144.11,108.04964886]
[1750751929146,1.5077,144.21,144.11,108.04964886]
[1750751929324,5.67688717,144.15,144.11,108.04964886]
[1750751929945,5.67688717,144.16,144.11,113.72653603]
[1750751930454,5.67688717,144.15,144.11,108.04964886]
[1750751930752,5.67688717,144.15,144.11,113.72653603]
[1750751931110,5.67688717,144.15,144.11,108.04964886]
[1750751931347,5.67688717,144.15,144.11,113.72653603]
[1750751932021,5.67688717,144.16,144.11,113.72653603]
[1750751932227,5.67688717,144.15,144.11,108.04964886]
[1750751933855,1.5077,144.21,144.11,113.72653603]
[1750751934059,5.67688717,144.15,144.11,108.04964886]
[1750751934560,5.67688717,144.15,144.13,18.64964886]
[1750751934923,1.5077,144.21,144.13,18.64964886]
[1750751935261,5.67688717,144.17,144.13,108.04964886]
[1750751937344,5.67688717,144.16,144.13,108.04964886]
[1750751937844,5.67688717,144.15,144.13,108.04964886]
[1750751938027,5.67688717,144.15,144.13,18.64964886]
[1750751938546,1.5077,144.21,144.13,18.64964886]
[1750751938743,5.67688717,144.16,144.13,18.64964886]
[1750751939218,5.67688717,144.15,144.13,18.64964886]
[1750751939646,5.67688717,144.14,144.13,18.64964886]
[1750751939814,5.67688717,144.14,144.12,30.06]
[1750751940021,5.67688717,144.13,144.09,18.64964886]
[1750751940219,5.67688717,144.12,144.09,18.64964886]
[1750751940452,1.5077,144.21,144.11,18.64964886]
[1750751940625,5.67688717,144.16,144.11,24.32653603]
[1750751940826,5.67688717,144.16,144.13,18.64964886]
[1750751941337,1.5077,144.21,144.13,18.64964886]
[1750751941537,5.67688717,144.15,144.13,18.64964886]
[1750751941729,1.5077,144.21,144.11,18.64964886]
[1750751942043,5.67688717,144.16,144.11,24.32653603]
[1750751942547,1.5077,144.21,144.12,5.67688717]
[1750751942747,5.67688717,144.18,144.14,24.32653603]
[1750751942924,5.67688717,144.18,144.16,18.64964886]
[1750751944136,1.5077,144.21,144.16,18.64964886]
[1750751944533,5.67688717,144.18,144.16,18.64964886]
[1750751944929,5.67688717,144.2,144.16,18.64964886]
[1750751945129,5.67688717,144.2,144.16,24.32653603]
[1750751945330,5.67688717,144.21,144.16,24.32653603]
[1750751946161,5.67688717,144.22,144.18,18.64964886]
[1750751946460,5.67688717,144.21,144.18,18.64964886]
[1750751946951,1.6344,144.25,144.18,18.64964886]
[1750751947137,5.67688717,144.21,144.18,18.64964886]
[1750751947538,5.67688717,144.2,144.18,18.64964886]
[1750751948138,5.67688717,144.24,144.18,18.64964886]
[1750751948454,5.67688717,144.2,144.18,18.64964886]
[1750751950660,5.67688717,144.24,144.18,18.64964886]
[1750751950860,5.67688717,144.23,144.18,24.32653603]
[1750751951081,5.67688717,144.23,144.2,18.64964886]
[1750751951747,5.67688717,144.24,144.2,18.64964886]
[1750751952750,1.6344,144.25,144.17,30.06]
[1750751952950,5.67688717,144.25,144.22,18.64964886]
[1750751953167,5.67688717,144.25,144.24,18.64964886]
[1750751953552,1.5163,144.29,144.24,18.64964886]
[1750751953867,5.67688717,144.26,144.24,18.64964886]
[1750751954276,1.5163,144.29,144.24,18.64964886]
[1750751954572,5.67688717,144.26,144.24,18.64964886]
[1750751958865,1.5163,144.29,144.24,18.64964886]
[1750751959067,5.67688717,144.25,144.24,18.64964886]
[1750751959472,5.67688717,144.26,144.24,18.64964886]
[1750751961586,1.5163,144.29,144.24,18.64964886]
[1750751961775,5.67688717,144.26,144.24,18.64964886]
[1750751961980,1.5163,144.29,144.24,18.64964886]
[1750751962487,5.67688717,144.26,144.24,18.64964886]
[1750751962661,1.5163,144.29,144.24,18.64964886]
[1750751962979,5.67688717,144.26,144.24,18.64964886]
[1750751963156,5.67688717,144.25,144.14,20.79]
[1750751963501,5.67688717,144.19,144.15,7.1]
[1750751963655,5.67688717,144.19,144.16,18.64964886]
[1750751964082,1.5163,144.29,144.16,18.64964886]
[1750751964258,5.67688717,144.19,144.16,18.64964886]
[1750751964670,5.67688717,144.24,144.16,18.64964886]
[1750751964855,5.67688717,144.2,144.16,18.64964886]
[1750751965256,1.5163,144.29,144.16,18.64964886]
[1750751965484,5.67688717,144.2,144.16,18.64964886]
[1750751965874,5.67688717,144.21,144.16,24.32653603]
[1750751966080,5.67688717,144.21,144.16,18.64964886]
[1750751966457,1.5163,144.29,144.16,24.32653603]
[1750751966658,5.67688717,144.21,144.16,24.32653603]
[1750751967089,1.5163,144.29,144.16,24.32653603]
[1750751967282,5.67688717,144.21,144.18,18.64964886]
[1750751967665,1.5163,144.29,144.18,18.64964886]
[1750751967865,5.67688717,144.21,144.18,18.64964886]
[1750751968383,1.5163,144.29,144.18,18.64964886]
[1750751968700,5.67688717,144.21,144.18,18.64964886]
[1750751969202,1.5163,144.29,144.18,18.64964886]
[1750751969388,5.67688717,144.21,144.18,18.64964886]
[1750751969687,1.5163,144.29,144.18,18.64964886]
[1750751969889,5.67688717,144.21,144.18,18.64964886]
[1750751970588,1.5163,144.29,144.16,24.32653603]
[1750751970589,5.67688717,144.2,144.16,24.32653603]
[1750751970789,1.5163,144.29,144.18,18.64964886]
[1750751970971,5.67688717,144.22,144.18,18.64964886]
[1750751971173,1.5163,144.29,144.18,18.64964886]
[1750751971174,5.67688717,144.21,144.18,18.64964886]
[1750751973393,5.67688717,144.21,144.16,24.32653603]
[1750751974291,5.67688717,144.19,144.16,18.64964886]
[1750751975390,5.67688717,144.19,144.15,7.1]
[1750751975575,5.67688717,144.19,144.15,12.77688717]
[1750751976900,5.67688717,144.21,144.16,5.67688717]
[1750751977399,5.67688717,144.21,144.17,18.64964886]
[1750751979487,7.23678717,144.22,144.17,5.67688717]
[1750751979684,5.67688717,144.21,144.17,5.67688717]
[1750751980083,5.67688717,144.21,144.16,24.32653603]
[1750751980990,10.0,144.21,144.16,12.77688717]
[1750751981300,7.23678717,144.22,144.18,5.67688717]
[1750751981496,10.0,144.23,144.2,5.67688717]
[1750751981892,17.29308717,144.25,144.2,5.67688717]
[1750751982097,10.0,144.24,144.2,5.67688717]
[1750751982299,10.0,144.25,144.23,5.67688717]
[1750751983105,1.6162,144.29,144.24,5.67688717]
[1750751983399,10.0,144.28,144.25,5.67688717]
[1750751983605,1.6162,144.29,144.25,5.67688717]
[1750751983914,10.0,144.28,144.25,5.67688717]
[1750751984209,1.6162,144.29,144.26,5.67688717]
[1750751984602,5.67688717,144.3,144.26,5.67688717]
[1750751984787,10.0,144.28,144.26,5.67688717]
[1750751985309,15.67688717,144.28,144.23,12.77688717]
[1750751985709,10.0,144.28,144.23,12.77688717]
[1750751986212,5.67688717,144.27,144.23,12.77688717]
[1750751986423,15.67688717,144.28,144.23,12.77688717]
[1750751986785,15.67688717,144.28,144.23,5.67688717]
[1750751987881,15.67688717,144.27,144.22,5.67688717]
[1750751988113,30.04,144.26,144.22,5.67688717]
[1750751989096,45.71688717,144.26,144.22,5.67688717]
[1750751989498,5.67688717,144.25,144.13,20.79]
[1750751989793,5.67688717,144.25,144.21,5.67688717]
[1750751990108,5.67688717,144.25,144.18,18.64964886]
[1750751990109,5.67688717,144.24,144.18,18.64964886]
[1750751990301,5.67688717,144.24,144.2,5.67688717]
[1750751991612,21.70918717,144.25,144.2,5.67688717]
[1750751991829,21.70918717,144.25,144.18,18.64964886]
[1750751991998,21.70918717,144.25,144.2,5.67688717]
[1750751992200,21.70918717,144.25,144.21,5.67688717]
[1750751993721,16.0323,144.25,144.2,5.67688717]
[1750751993921,21.70918717,144.25,144.2,5.67688717]
[1750751994621,21.70918717,144.25,144.21,5.67688717]
[1750751995310,16.0323,144.25,144.21,5.67688717]
[1750751995730,16.0323,144.25,144.22,5.67688717]
[1750751997020,21.70918717,144.25,144.18,18.64964886]
[1750751997207,5.67688717,144.23,144.19,5.67688717]
[1750751997395,5.67688717,144.23,144.18,18.64964886]
[1750751997396,15.67688717,144.23,144.18,5.67688717]
[1750751997597,15.67688717,144.23,144.19,5.67688717]
[1750751998020,5.67688717,144.21,144.14,18.64964886]
[1750751998231,5.67688717,144.2,144.16,5.67688717]
[1750751998603,5.67688717,144.21,144.16,5.67688717]
[1750751998805,5.67688717,144.2,144.16,5.67688717]
[1750751999319,5.67688717,144.2,144.14,18.64964886]
[1750751999507,15.67688717,144.2,144.14,18.64964886]
[1750751999825,15.67688717,144.2,144.15,5.67688717]
[1750752000030,15.67688717,144.2,144.14,18.64964886]
[1750752000031,15.67688717,144.2,144.16,5.67688717]
[1750752000233,15.67688717,144.2,144.14,18.64964886]
[1750752000408,10.0,144.2,144.16,5.67688717]
[1750752000611,15.67688717,144.2,144.16,5.67688717]
[1750752000815,10.0,144.2,144.16,5.67688717]
[1750752001317,15.67688717,144.2,144.16,5.67688717]
[1750752001506,10.0,144.21,144.17,5.67688717]
[1750752001714,10.0,144.2,144.17,5.67688717]
[1750752001942,15.67688717,144.21,144.17,5.67688717]
[1750752003022,10.0,144.2,144.17,5.67688717]
[1750752004308,10.0,144.2,144.12,18.64964886]
[1750752004709,10.0,144.2,144.17,5.67688717]
[1750752005130,10.0,144.2,144.12,18.64964886]
[1750752005341,5.67688717,144.22,144.18,5.67688717]
[1750752005525,10.0,144.22,144.18,5.67688717]
[1750752005708,15.67688717,144.22,144.17,5.67688717]
[1750752005917,10.0,144.23,144.18,5.67688717]
[1750752006112,13.79158717,144.2,144.16,5.67688717]
[1750752006340,18.1147,144.2,144.16,5.67688717]
[1750752006518,18.1147,144.2,144.17,5.67688717]
[1750752006718,5.67688717,144.22,144.18,5.67688717]
[1750752006917,18.1147,144.23,144.18,5.67688717]
[1750752007135,18.1147,144.23,144.19,5.67688717]
[1750752007326,10.0,144.26,144.22,5.67688717]
[1750752007533,10.0,144.25,144.23,5.67688717]
[1750752007926,10.0,144.25,144.19,18.64964886]
[1750752008126,15.67688717,144.25,144.21,5.67688717]
[1750752008348,10.0,144.25,144.23,5.67688717]
[1750752008524,8.1147,144.27,144.17,18.64964886]
[1750752008525,10.0,144.26,144.24,5.67688717]
[1750752008728,10.0,144.26,144.21,18.64964886]
[1750752009054,8.1147,144.27,144.24,5.67688717]
[1750752009223,8.1147,144.27,144.25,5.67688717]
[1750752009533,18.1147,144.27,144.25,5.67688717]
[1750752010641,8.1147,144.27,144.25,5.67688717]
[1750752010948,6.768324,144.31,144.15,20.79]
[1750752010949,10.0,144.24,144.15,20.79]
[1750752011156,10.0,144.23,144.11,18.64964886]
[1750752011320,8.191,144.25,144.2,5.67688717]
[1750752011520,10.0,144.24,144.2,5.67688717]
[1750752011738,13.86788717,144.25,144.2,5.67688717]
[1750752011939,10.0,144.24,144.2,5.67688717]
[1750752012222,15.67688717,144.24,144.2,5.67688717]
[1750752013448,8.191,144.25,144.22,5.67688717]
[1750752013830,8.191,144.25,144.21,24.32653603]
[1750752014346,8.191,144.25,144.19,44.64964886]
[1750752014527,13.86788717,144.25,144.19,18.64964886]
[1750752014724,13.86788717,144.25,144.2,5.67688717]
[1750752014927,13.86788717,144.25,144.21,5.67688717]
[1750752015436,8.191,144.25,144.21,5.67688717]
[1750752015644,8.191,144.25,144.22,5.67688717]
[1750752016439,23.52878717,144.29,144.24,5.67688717]
[1750752016635,13.52878717,144.29,144.25,5.67688717]
[1750752017034,10.0,144.28,144.26,5.67688717]
[1750752017247,17.8519,144.29,144.26,5.67688717]
[1750752018147,23.52878717,144.29,144.25,5.67688717]
[1750752018342,13.52878717,144.29,144.25,5.67688717]
[1750752019338,7.8519,144.29,144.25,5.67688717]
[1750752019550,7.8519,144.29,144.26,5.67688717]
[1750752019857,7.8519,144.29,144.21,18.64964886]
[1750752020157,13.52878717,144.29,144.21,18.64964886]
[1750752020653,13.52878717,144.29,144.25,5.67688717]
[1750752021226,7.8519,144.29,144.25,5.67688717]
[1750752021427,13.52878717,144.29,144.25,5.67688717]
[1750752021825,7.8519,144.29,144.25,5.67688717]
[1750752022027,7.565,144.32,144.28,5.67688717]
[1750752022330,5.67688717,144.36,144.31,5.67688717]
[1750752022525,7.565,144.39,144.33,5.67688717]
[1750752022753,5.67688717,144.37,144.33,5.67688717]
[1750752023067,7.565,144.39,144.36,5.67688717]
[1750752023236,13.73078717,144.43,144.38,5.67688717]
[1750752023424,8.0539,144.43,144.38,5.67688717]
[1750752023626,8.0539,144.43,144.32,5.67688717]
[1750752023934,13.73078717,144.43,144.32,18.90695392]
[1750752024131,8.0539,144.43,144.26,18.64964886]
[1750752024346,8.0539,144.43,144.22,4.92111262]
[1750752025060,8.0539,144.43,144.23,7.08480981]
[1750752025228,8.0539,144.43,144.23,14.34230497]
[1750752025431,8.0539,144.43,144.23,7.08480981]
[1750752026760,8.0539,144.43,144.24,26.58322373]
[1750752027064,8.0539,144.43,144.24,279.3255287]
[1750752027361,8.0539,144.43,144.25,27.90480981]
[1750752027564,8.0539,144.43,144.26,5.76322373]
[1750752028434,8.0539,144.43,144.26,244.16322373]
[1750752028633,8.0539,144.43,144.27,20.82]
[1750752028867,8.0539,144.43,144.27,259.22]
[1750752029172,8.0539,144.43,144.27,264.98322373]
[1750752029558,8.0539,144.43,144.29,20.82]
[1750752029750,8.0539,144.43,144.29,259.22]
[1750752036670,6.5028,144.43,144.29,259.22]
[1750752036863,6.0895,144.41,144.29,259.22]
[1750752039471,6.4624,144.39,144.29,259.22]
[1750752041053,1.5883,144.38,144.29,259.22]
[1750752041749,1.5883,144.38,144.29,238.4]
[1750752041944,1.5105,144.36,144.29,238.4]